Cogmind - Beta 13 @@@ ROGUE MODE // 2024.04.23 @ 10:10:41 Player: Tyrannosaurus Flex Result: Core destroyed Performance ------------- Evolutions (0) 0 Regions Visited (1) 200 Robots Destroyed (13) 65 Value Destroyed (242) 242 Prototype IDs (0) 0 Alien Tech Used (0) 0 Bonus (0) 0 TOTAL SCORE: 507 Bonus ------- None Cogmind --------- Core Integrity 0/250 Matter 154/300 Energy 100/100 System Corruption 17% Temperature Cool (0) Movement Core (450) Ox8 Location -10/Materials Parts ------- > --- POWER (1) -------- Light Ion Engine > --- PROPULSION (2) --- (None) > --- UTILITY (2) ------ Improved Heat Sink Large Storage Unit > --- WEAPON (2) ------- Grenade Launcher > --- INVENTORY (15) --- Light Treads Light Treads Aluminum Leg Aluminum Leg Assault Rifle Light Assault Rifle Light Assault Rifle Peak State ------------ > --- POWER ------------ Light Nuclear Core > --- PROPULSION ------- Wheel Compact Wheel > --- UTILITY ---------- Improved Heat Sink Small Storage Unit > --- WEAPON ----------- Assault Rifle Light Assault Rifle > --- INVENTORY -------- Light Ion Engine Light Treads Light Treads Aluminum Leg Aluminum Leg Light Assault Rifle Light Assault Rifle Grenade Launcher [Rating: 11] Favorites ----------- Power Light Nuclear Core Engine Ion Engine Power Core Light Nuclear Core Propulsion Wheel Treads Light Treads Wheel Wheel Utility Small Storage Unit Device Improved Heat Sink Storage Small Storage Unit Weapon Light Assault Rifle Ballistic Gun Light Assault Rifle Launcher Grenade Launcher Build | -11 -10 ------- Run | Yrd Mat Slots Evolved . | . . Power . | . . Propulsion . | . . Utility . | . . Weapon . | . . Parts Attached 16 | 6 10 Power 3 | 1 2 Engine 2 | 1 1 Core 1 | . 1 Reactor . | . . Propulsion 7 | 2 5 Treads 2 | . 2 Leg . | . . Wheel 5 | 2 3 Hover . | . . Flight . | . . Utility 3 | 1 2 Device 1 | . 1 Storage 2 | 1 1 Processor . | . . Hackware . | . . Protection . | . . Artifact . | . . Weapon 3 | 2 1 Energy Gun . | . . Energy Cannon . | . . Ballistic Gun 2 | 2 . Ballistic Cannon . | . . Launcher 1 | . 1 Special Weapon . | . . Impact Weapon . | . . Slashing Weapon . | . . Piercing Weapon . | . . Special Melee Weapon . | . . Unidentified Prototypes . | . . Parts Lost 6 | . 6 Power 2 | . 2 Propulsion 3 | . 3 Utility . | . . Weapon 1 | . 1 Highest Loss Streak 2 | . 2 To Critical Strikes . | . . Average Slot Usage (%) 88 | . 88 Engine 7 | . 7 Core 6 | . 6 Wheel 22 | . 22 Device 9 | . 9 Storage 14 | . 14 Ballistic Gun 25 | . 25 Launcher 1 | . 1 Naked Turns . | . . Heaviest Build 29 | 13 29 Greatest Support 40 | 20 40 Greatest Overweight (x) 8 | . 8 Average Overweight (x) . | . . Largest Inventory Capacity 15 | 8 15 Average Capacity 10 | 7 10 Most Carried 8 | 6 8 Average Carried 7 | 3 7 Final Capacity 15 | 8 15 Final Carried 7 | 6 7 Class Distribution -------------------- 100% | Mutant Dominant Class ---------------- Mutant | -10/Materials Resources | -11 -10 ----------- Run | Yrd Mat Matter Collected 477 | 200 277 Remotely . | . . Salvage Created 310 | . 310 Parts 15 | . 15 Haulers Intercepted . | . . Recyclers Shooed . | . . Parts Field Recycled . | . . Retrieved Matter . | . . Parts Self-Destructed . | . . Prevented . | . . Kills | -11 -10 ------- Run | Yrd Mat Combat Hostiles Destroyed 10 | . 10 Guns 9 | . 9 AOE 1 | . 1 Classes Destroyed 5 | . 5 Worker 1 | . 1 Operator 1 | . 1 Watcher 1 | . 1 Swarmer 6 | . 6 Grunt 4 | . 4 Best Kill Streak 3 | . 3 Combat Bots Only 3 | . 3 Max Kills in Single Turn 2 | . 2 Gunslinging . | . . Exploded 1 | . 1 Melee . | . . Uniques/NPCs Destroyed . | . . Combat | -11 -10 -------- Run | Yrd Mat Hostile Shots Fired 53 | . 53 Missed 16 | . 16 Damage Taken 765 | . 765 Core 253 | . 253 Absorbed by Shields . | . . Core Remaining (%) 100 | 100 . Volleys Fired 46 | . 46 Largest 2 | . 2 Hottest 40 | . 40 Shots Fired 84 | . 84 Gun 76 | . 76 Cannon . | . . Launcher 8 | . 8 Special . | . . Kinetic 76 | . 76 Thermal . | . . Explosive 8 | . 8 Electromagnetic . | . . Robot Hit Streak 6 | . 6 Robot Miss Streak 5 | . 5 Penetration Max . | . . Secondary Targets . | . . Shots Hit Robots 45 | . 45 Core Hits 23 | . 23 Critical Kills 1 | . 1 Critical Parts Destroyed . | . . Critical Strikes 1 | . 1 Destroy 1 | . 1 Melee Attacks . | . . Impact . | . . Slashing . | . . Piercing . | . . Sneak Attacks . | . . Combat Hostiles . | . . Follow-up Attacks . | . . Damage Inflicted 705 | . 705 Guns 461 | . 461 Cannons . | . . Explosions 220 | . 220 Melee . | . . Ramming 24 | . 24 Kinetic 461 | . 461 Thermal . | . . Explosive 220 | . 220 Electromagnetic . | . . Impact . | . . Slashing . | . . Piercing . | . . Highest Corruption 17 | . 17 Average Corruption 2 | . 2 Corruption Purged . | . . Corruption Blocked . | . . Effects 17 | . 17 Message Errors 3 | . 3 Matter Fused 7 | . 7 Heat Flow Errors 1 | . 1 Energy Discharges 1 | . 1 Data Loss (minor) 2 | . 2 Data Loss (major) 1 | . 1 Alerts 2 | . 2 Overload Shots . | . . Overflow Damage 11 | . 11 Projectiles . | . . Explosions 11 | . 11 Melee . | . . Knockbacks . | . . Impact . | . . Kinetic . | . . Secondary . | . . Self-Inflicted Damage 148 | . 148 Shots 5 | . 5 Rammed . | . . Targets Rammed . | . . Kicked . | . . Crushed . | . . Highest Temperature 92 | . 92 Average Temperature 15 | . 15 Received Heat Transfer 168 | . 168 Siege Activations . | . . Robots Corrupted . | . . Combat Hostiles . | . . Parts Fried . | . . Impact Corruptions . | . . Robots Melted . | . . Combat Hostiles . | . . Parts Melted . | . . Heat Transferred . | . . Parts Sabotaged . | . . Parts Stolen . | . . Parts Stripped . | . . Power Chain Reactions . | . . Alert | -11 -10 ------- Run | Yrd Mat Peak Influence 135 | . 135 Initial . | . . Average 59 | . 62 Maximum Alert Level . | . . Low Security (%) 100 | 100 100 Level 1 . | . . Level 2 . | . . Level 3 . | . . Level 4 . | . . Level 5 . | . . High Security . | . . Max Security . | . . Squads Dispatched 3 | . 3 Investigation . | . . Extermination . | . . Reinforcement 3 | . 3 Assault . | . . Garrison . | . . Intercept . | . . Searches Triggered . | . . Construction Impeded . | . . Haulers Reinforced . | . . Active Scanning Responses . | . . Cargo Convoy Interrupts . | . . Stealth | -11 -10 --------- Run | Yrd Mat Distress Signals 2 | . 2 Communications Jammed . | . . Distress Signals . | . . Times Spotted 22 | . 22 Peak Tracking Total 4 | . 4 Tactical Retreats 1 | . 1 Traps | -11 -10 ------- Run | Yrd Mat Traps Triggered 6 | . 6 Indirectly . | . . Trap Hack Attempts . | . . Triggered . | . . Disarmed . | . . Reprogrammed . | . . Reused . | . . Traps Extracted . | . . Installed . | . . Triggered . | . . Machines | -11 -10 ---------- Run | Yrd Mat Machines Disabled . | . . Max in Single Turn . | . . Machines Repaired . | . . Machines Dismantled . | . . Machines Sabotaged . | . . Overloaded Fab Kills . | . . Hacking | -11 -10 --------- Run | Yrd Mat Machines Accessed 8 | . 8 Terminals 6 | . 6 Fabricators . | . . Repair Stations . | . . Recycling Units 2 | . 2 Scanalyzers . | . . Garrison Access . | . . Total Hacks 20 | . 20 Successful 10 | . 10 Failed 10 | . 10 Catastrophic 1 | . 1 Database Lockouts . | . . Manual 18 | . 18 Terminals 18 | . 18 Fabricators . | . . Repair Stations . | . . Recycling Units 2 | . 2 Scanalyzers . | . . Garrison Access . | . . Terminal Hacks 3 | . 3 Robot Analysis 1 | . 1 Terminal Index 1 | . 1 Hauler Manifests 1 | . 1 Fabricator Hacks . | . . Repair Station Hacks . | . . Recycling Unit Hacks 2 | . 2 Report Inventory 2 | . 2 Scanalyzer . | . . Garrison Access Hacks . | . . Unauthorized Hacks 5 | . 5 Terminals 5 | . 5 Botnet 5 | . 5 Fabricators . | . . Repair Stations . | . . Recycling Units . | . . Scanalyzers . | . . Garrison Access . | . . Data Cores Recovered . | . . Used . | . . Hacking Detections 6 | . 6 Full Trace Events . | . . Feedback Events . | . . Feedback Blocked . | . . Robot Schematics Acquired . | . . Robots Built . | . . Authchips . | . . Time . | . . Total Robot Build Rating . | . . Part Schematics Acquired . | . . Parts Built . | . . Authchips . | . . Time . | . . Total Part Build Rating . | . . Parts Repaired . | . . Time . | . . Parts Recycled . | . . Recycled Matter . | . . Retrieved Matter . | . . Retrieved Components . | . . Parts Scanalyzed . | . . Part Schematics Acquired . | . . Parts Damaged . | . . Bothacking | -11 -10 ------------ Run | Yrd Mat Used RIF Installer . | . . Robots Hacked . | . . Non-combat . | . . Combat . | . . Robot Hacks Applied . | . . Relay Couplers Released . | . . Fabnet Peak Effective % . | . . Robots Rewired . | . . Allies Hacked . | . . Hacks Repelled . | . . Allies | -11 -10 -------- Run | Yrd Mat Total Allies . | . . Largest Group . | . . Highest-Rated Group . | . . Highest-Rated Ally . | . . Total Orders . | . . Ally Attacks . | . . Total Damage . | . . Kills . | . . Allies Corrupted . | . . Allies Melted . | . . Intel | -11 -10 ------- Run | Yrd Mat Robot Analysis Total 1 | . 1 Derelict Logs Recovered . | . . Drone Launches . | . . Drone Recoveries . | . . Exploration | -11 -10 ------------- Run | Yrd Mat Turns Passed 1481 | 61 1420 Spaces Moved 886 | 58 828 Core 5 | 1 4 Treads 10 | . 10 Legs . | . . Wheels 871 | 57 814 Hover . | . . Flight . | . . Fastest Speed 50 | 50 80 Average Speed 91 | 79 92 Slowest Speed 450 | 80 450 Overloaded Moves . | . . Propulsion Burnouts . | . . Robots Hopped . | . . Cave-ins Triggered . | . . Exploration Rate (%) 50 | 4 97 Regions Visited 1 Branch Regions . Pre-discovered Areas . | . . Known Exits Taken . | . . Unknown Exits Taken 1 | 1 . Scrap Searched . | . . Spaces Dug . | . . Terrain Destroyed 58 | . 58 Melee . | . . Projectile . | . . AOE 58 | . 58 Terrain Rammed 22 | . 22 Walls Destroyed . | . . Machines Disabled . | . . Actions | -11 -10 --------- Run | Yrd Mat Total 1399 | 69 1330 Wait 421 | . 421 Move 885 | 57 828 Hop . | . . Pick Up 8 | 6 2 Fast Attach 10 | 6 4 Attach . | . . Detach . | . . Swap 6 | . 6 Drop 2 | . 2 Fire 46 | . 46 Melee . | . . Ram 21 | . 21 Kick . | . . Crush . | . . Escape Stasis . | . . Rewire . | . . Trap . | . . Miscellaneous . | . . Route ------- -11/Scrapyard -10/Materials (discovered 5 exits: [*Mat x3] / [*Min x2]) History --------- Turn | Location | Event 7 | -11/Scrapyard | Discovered new exit (range 16) 62 | -11/Scrapyard | Entered Materials 206 | -10/Materials | Discovered new exit (range 16) 308 | -10/Materials | Build established: Mutant 473 | -10/Materials | Discovered new exit (range 12) 604 | -10/Materials | Discovered new exit (range 14) 882 | -10/Materials | Discovered new exit (range 13) 1347 | -10/Materials | Discovered new exit (range 16) 1369 | -10/Materials | Core integrity fell below 50% 1425 | -10/Materials | Core integrity fell below 20% 1452 | -10/Materials | System corruption reached 10% 1482 | -10/Materials | Core destroyed Last Messages --------------- 01446_ Slammed into Earth. 01446_ Destabilizing: System corrupted (+2). 01451_ Slammed into Earth. 01451_ Destabilizing: System corrupted (+1). 01454_ System corrupted: Energy discharge (-33). 01455_ Slammed into Earth. 01460_ Destabilizing: System corrupted (+1). 01464_ Slammed into Earth. 01464_ Destabilizing: Core damaged (-5). 01464_ Destabilizing: System corrupted (+1). 01469_ Slammed into Earth. 01469_ Destabilizing: System corrupted (+1). 01469_ Destabilizing: Core damaged (-10). 01473_ Slammed into Earth. 01473_ Destabilizing: System corrupted (+2). 01477_ RCOD H7X%0 C%DXB77VG5AKPT6XSDK /3 01478_ Slammed into Earth. 01478_ Destabilizing: Core damaged (-7). 01482_ Slammed into Earth. 01482_ Destabilizing: Core damaged (-5). Map ----- +----------------------------------------------------+ | ####+#########?# #??# ####??????????# #????????? | | # #????# #??# T#????????????# #????????? | | # """ """ #????# #??# ##????????????# #????????? | | # """ """ #????# #??# #?????????????# #????????? | | # """ """ #????# #??# ########?###### #????????? | | # #????# #??# # ??# # #????????? | | # #????# #?## # """ ! # "" # #????????? | | # ! #????# #?## # """ # "Y # #????????? | | # #????# #?## # """ # "" # #????????? | | ###########????# #?## #! # # ########## | | #??????????????# #?## # """ # # ## | | #??????????????# #?## + """ !#!!! + + | | #??????????????# #?##% # """ #!!! # ## | | #??????????????# #?## # #!!! # ## | | #??????????????# #?## ############### ## | | #????????????###+#### # # # ## | | ##???????????# # # # """ # ## | | #???????????# # %# "" # """ # ## % | | ##??????????# + + "T # """ # ######+### | | #??????????#!! # # "" # # #### ^ # | | ##??????????#!! # # # # # | | #???????????# # ######## + # | | ##???????????######### ###????# "" # # | | ?????????????????????# #????# "" ###### # | | ????????????????????## # #????# "T *####### ## | | ????????????????????# @#????# "" # # # | | ???????????????????## #????# "" |#""" + + | | ???????????????????# #????# #""" # # | | ???????????????????# # ##????########""" !# # | | ???????????????????# # #???????????#""" # # | | ????????????????? #???????????# # #! | | ???????????????""" #???????????#""" # # | | ???????????????""" ???????????#""" # # | | ???????????????""" ??????????#""" # # | | ??????????????? ??????????#""" # # | | ??????????????" ##?????????# # # | | ??????????????T # %* ??????????# # #! | | ??????????????" # #??????????####### < # | | ?????????????? ????????????????# ## | | ??????????????####### ????????????????#####? | | ????????????????????### < ##?????????????????????? | | ??????????????????????# #??????????????????????? | | ???????????????????????###???????????????????????? | | ?????????????????????????????????????????????????? | | ?????????????????????????????????????????????????? | | ?????????????????????????????????????????????????? | | ?????????????????????????????????????????????????? | | | | | | | +----------------------------------------------------+ Best States ------------- Heat Dissipation 39 Energy Generation 14 Energy Capacity 250 Matter Stores 300 Matter Capacity 300 Sight Range 16 Terrain Scan Density 10 Evasion (%) 44 Recoil Reduction 2 Item Schematics ----------------- None Robot Schematics ------------------ None Fabricated ------------ Nothing Alien Tech Used ----------------- None Achievements -------------- None Challenges ------------ None Game ------ Seed FactoryEncryptedRedirector Manual? 0 Play Time 00:19:54 Cumulative 19.2 hours Start 2024.04.23 @ 09:54:32 End 2024.04.23 @ 10:10:41 Sessions 1 Manual Loads 0 Difficulty Rogue Special Mode None Game No. 24 Rogue 24 Adventurer 0 Explorer 0 Win Type - Total 0 Types 0/0/0/0/0/0/0/0/0 Lore% 16 Gallery% 15 Achievement% 17 Wizard Run 0 Options --------- Layout 2 ASCII 0 Keyboard 1 Movement Numpad Keybinds 0 Fullscreen 1 Font 16/SmallcapsGlow Map View 55x47 Zoom Use 0% Tactical HUD 1 Map Filters NONE Filters NONE Steam 1 RUN: 6009559c-cdb2-4375-81db-4e54cd49d312